bitfinex-derivatives/quotes_BTCF0:USTF0_20260314
["timestamp","ask_amount","ask_price","bid_price","bid_amount"]
[1773449942608,0.14275746,70750.0,70739.0,0.00337]
[1773449943809,0.18515346,70750.0,70739.0,0.00337]
[1773449948710,0.042397,70749.0,70739.0,0.00337]
[1773449953518,0.16800901,70746.0,70714.0,0.16202242]
[1773449953724,0.16800901,70732.0,70715.0,0.00144]
[1773449953903,0.16800901,70732.0,70716.0,0.00144]
[1773449954709,0.16800901,70732.0,70721.0,0.042413]
[1773449955816,0.21041601,70732.0,70721.0,0.042413]
[1773449956112,0.16800901,70731.0,70721.0,0.042413]
[1773449957219,0.16800901,70731.0,70723.0,0.00337]
[1773449958112,0.16800901,70725.0,70690.0,0.23583588]
[1773449958319,0.16800901,70712.0,70701.0,0.042425]
[1773449958523,0.16800901,70712.0,70700.0,0.042426]
[1773449958716,0.16800901,70712.0,70700.0,0.032426]
[1773449959622,0.16800901,70712.0,70702.0,0.00337]
[1773449960117,0.042417,70715.0,70702.0,0.00337]
[1773449960420,0.16944901,70722.0,70704.0,0.042424]
[1773449960621,0.042415,70719.0,70705.0,0.042422]
[1773449961716,0.042415,70719.0,70706.0,0.00144]
[1773449962711,0.042415,70719.0,70708.0,0.00337]
[1773449962925,0.042415,70718.0,70708.0,0.00337]
[1773449964721,0.00337,70720.0,70709.0,0.042421]
[1773449969631,0.00337,70720.0,70710.0,0.04242]
[1773449971031,0.21042201,70722.0,70710.0,0.04242]
[1773449971734,0.21042201,70722.0,70712.0,0.00337]
[1773449972528,0.00337,70721.0,70712.0,0.00337]
[1773449975035,0.00337,70721.0,70712.0,0.045788]
[1773449975440,0.00337,70721.0,70712.0,0.00337]
[1773449983236,0.045784,70721.0,70712.0,0.00337]
[1773449983437,0.045784,70721.0,70712.0,1e-06]
[1773449983438,0.16212541,70721.0,70712.0,1e-06]
[1773449983642,0.16212541,70721.0,70706.0,0.00144]
[1773449983843,0.20117241,70716.0,70706.0,0.00144]
[1773449984043,0.042417,70715.0,70706.0,0.00144]
[1773449985135,0.15875541,70716.0,70706.0,0.00144]
[1773449985343,0.15875541,70716.0,70708.0,0.00337]
[1773449986035,0.16212541,70716.0,70708.0,0.00337]
[1773449987345,0.00337,70716.0,70708.0,0.00337]
[1773449990547,0.00337,70716.0,70690.0,0.07381346]
[1773449990742,0.19084074,70697.0,70681.0,0.0007074]
[1773449991045,0.042427,70699.0,70685.0,0.042435]
[1773449991343,0.15670216,70701.0,70685.0,0.042435]
[1773449991344,0.20056816,70701.0,70685.0,0.042435]
[1773449991536,0.042428,70698.0,70686.0,0.042434]
[1773449992846,0.042428,70698.0,70687.0,0.00337]
[1773449993040,0.15670216,70697.0,70681.0,0.0007074]
[1773449993236,0.04243,70694.0,70681.0,0.0007074]
[1773449993439,0.042429,70696.0,70683.0,0.042436]
[1773449993835,0.042429,70695.0,70683.0,0.042436]
[1773449995646,0.00337,70694.0,70683.0,0.042436]
[1773449996547,0.19718744,70693.0,70683.0,0.042436]
[1773449996847,0.19718744,70692.0,70683.0,0.042436]
[1773449997040,0.00337,70694.0,70683.0,0.042436]
[1773449997240,0.15670216,70689.0,70674.0,0.042441]
[1773449997440,0.19718744,70688.0,70674.0,0.042441]
[1773449997634,0.042435,70686.0,70674.0,0.042441]
[1773449997844,0.19718744,70685.0,70664.0,0.15612912]
[1773449998046,0.19708082,70684.0,70673.0,0.00144]
[1773449998348,0.042437,70682.0,70673.0,0.00144]
[1773449998847,0.042438,70680.0,70673.0,0.00481]
[1773449999243,0.042439,70679.0,70673.0,0.00481]
[1773450000149,0.16007216,70685.0,70673.0,0.00481]
[1773450000150,0.042438,70680.0,70673.0,0.00481]
[1773450000351,0.042438,70680.0,70673.0,0.00144]
[1773450001252,0.042438,70680.0,70674.0,0.00337]
[1773450001644,0.00337,70679.0,70674.0,0.00337]
[1773450002855,0.042429,70696.0,70682.0,0.042437]
[1773450003150,0.043864,70704.0,70691.0,0.042431]
[1773450003351,0.0352895,70708.0,70690.0,0.15612912]
[1773450003542,0.042424,70703.0,70691.0,0.00144]
[1773450005537,0.042424,70703.0,70692.0,0.00337]
[1773450006250,0.045794,70703.0,70692.0,0.00337]
[1773450007949,0.00337,70703.0,70692.0,0.00337]
[1773450008154,0.00337,70703.0,70692.0,0.0458]
[1773450019662,0.00337,70703.0,70693.0,0.04243]
[1773450025162,0.00337,70703.0,70692.0,0.15853136]
[1773450025362,0.042421,70708.0,70693.0,0.15516136]
[1773450026271,0.042421,70708.0,70694.0,0.00337]
[1773450026670,0.00337,70703.0,70694.0,0.00337]
[1773450027060,0.00337,70703.0,70696.0,0.042428]
[1773450027266,0.00337,70703.0,70697.0,0.00144]
[1773450027467,0.042421,70708.0,70697.0,0.00144]
[1773450028171,0.042421,70708.0,70697.0,0.043868]
[1773450028366,0.042421,70708.0,70698.0,0.042427]
[1773450028767,0.045791,70708.0,70698.0,0.042427]
[1773450029878,0.042421,70708.0,70698.0,0.042427]
[1773450030375,0.00144,70709.0,70698.0,0.042427]
[1773450030767,0.00144,70709.0,70699.0,0.00337]
[1773450031375,0.00337,70708.0,70699.0,0.00337]
[1773450031979,0.00337,70708.0,70699.0,0.045796]
[1773450035388,0.00337,70708.0,70699.0,0.00337]
[1773450036083,0.00144,70712.0,70699.0,0.15853136]
[1773450036291,0.042415,70718.0,70700.0,0.15516136]
[1773450036683,0.042415,70718.0,70707.0,0.042421]
[1773450036987,0.042415,70718.0,70707.0,0.043861]
[1773450038182,0.042415,70718.0,70709.0,0.00337]
[1773450039685,0.03865401,70719.0,70709.0,0.00337]
[1773450039686,1e-06,70719.0,70709.0,0.00337]
[1773450040090,1e-06,70719.0,70709.0,0.04579]
[1773450041894,0.52490015,70742.0,70710.0,0.15516136]
[1773450042091,0.15395257,70751.0,70709.0,0.00337]
[1773450042092,0.042398,70747.0,70730.0,0.07396534]
[1773450042391,0.00144,70754.0,70741.0,0.042401]
[1773450042591,0.19634457,70757.0,70742.0,0.0424]
[1773450042893,0.043833,70756.0,70738.0,0.00144]
[1773450043285,0.15395257,70763.0,70740.0,0.07396534]
[1773450043486,0.15395257,70741.0,70720.0,0.07396534]
[1773450043797,0.14395257,70741.0,70732.0,0.042406]
[1773450044293,0.14395257,70741.0,70740.0,0.00337]
[1773450044492,0.14395257,70741.0,70732.0,0.042406]
[1773450045885,0.14395257,70741.0,70733.0,0.042406]
[1773450046293,0.14395257,70741.0,70734.0,0.00337]
[1773450047691,0.00337,70742.0,70734.0,0.00337]
[1773450047895,0.042395,70752.0,70738.0,0.042403]
[1773450048100,0.00144,70751.0,70741.0,0.042401]
[1773450048290,0.00144,70752.0,70741.0,0.042401]
[1773450049289,0.00144,70753.0,70741.0,0.042401]
[1773450050085,0.16183779,70762.0,70740.0,0.07396534]
[1773450050289,0.042392,70758.0,70745.0,0.042399]
[1773450050893,0.043832,70758.0,70745.0,0.042399]
[1773450051488,0.042392,70757.0,70745.0,0.042399]
[1773450051686,0.042392,70757.0,70748.0,0.00337]
[1773450052295,0.15756454,70757.0,70748.0,0.00337]
[1773450052494,0.15756454,70752.0,70738.0,0.00144]
[1773450052998,0.00144,70756.0,70729.0,0.00144]
[1773450052999,0.15756454,70745.0,70729.0,0.00144]
[1773450053298,0.15756454,70745.0,70730.0,0.07396534]
[1773450053491,0.15756454,70745.0,70731.0,0.00144]
[1773450053688,0.15756454,70745.0,70737.0,0.042403]
[1773450053890,0.00144,70749.0,70731.0,0.00144]
[1773450054697,0.00144,70749.0,70739.0,0.00324]
[1773450055386,0.00324,70746.0,70739.0,0.00324]
[1773450056289,0.00144,70749.0,70737.0,0.042403]
[1773450056900,0.00144,70749.0,70741.0,0.00324]
[1773450060690,0.043837,70749.0,70741.0,0.00324]
[1773450060891,0.15756454,70748.0,70737.0,0.042403]
[1773450061091,0.15756454,70747.0,70735.0,0.042405]
[1773450062199,0.19996254,70747.0,70737.0,0.00324]
[1773450063690,0.042398,70747.0,70737.0,0.00324]
[1773450063893,0.15756454,70746.0,70737.0,0.00324]
[1773450064691,0.15756454,70746.0,70736.0,0.042404]
[1773450064692,0.15756454,70747.0,70720.0,0.23476924]
[1773450064895,0.15756454,70737.0,70721.0,0.00144]
[1773450065200,0.19996854,70737.0,70721.0,0.00144]
[1773450065400,0.15756454,70738.0,70723.0,0.042412]
[1773450065703,0.00324,70748.0,70722.0,0.00144]
[1773450065704,0.15756454,70734.0,70722.0,0.00144]
[1773450065905,0.042408,70730.0,70714.0,0.042417]
[1773450066099,0.00144,70736.0,70717.0,0.042415]
[1773450066100,0.15756454,70727.0,70717.0,0.042415]
[1773450066292,0.15756454,70727.0,70718.0,0.042415]
[1773450066495,0.19997254,70731.0,70719.0,0.042414]
[1773450066698,0.00144,70730.0,70719.0,0.042414]
[1773450066905,0.00144,70730.0,70723.0,0.00324]
[1773450068099,0.15756454,70731.0,70720.0,0.042414]
[1773450068298,0.00144,70730.0,70720.0,0.042414]
[1773450069007,0.00144,70730.0,70724.0,0.00334]
[1773450069493,0.00478,70730.0,70724.0,0.00334]
[1773450070595,0.15756454,70735.0,70724.0,0.00334]
[1773450070799,0.15756454,70735.0,70727.0,0.04241]
[1773450070800,0.00144,70735.0,70727.0,0.04241]
[1773450071609,0.15756454,70739.0,70727.0,0.04241]
[1773450071809,0.00144,70736.0,70728.0,0.042409]
[1773450071997,0.15756454,70756.0,70724.0,0.00334]
[1773450072203,0.15756454,70747.0,70735.0,0.042405]
[1773450072405,0.042399,70746.0,70730.0,0.07381105]
[1773450072607,0.00144,70745.0,70730.0,0.07381105]
[1773450072902,0.00144,70744.0,70730.0,0.07715105]
[1773450073103,0.00144,70749.0,70739.0,0.042402]
[1773450074105,0.15900454,70749.0,70739.0,0.042402]
[1773450074907,0.15900454,70749.0,70741.0,0.00334]
[1773450075407,0.00144,70749.0,70741.0,0.00334]
[1773450076116,0.00144,70748.0,70741.0,0.00334]
[1773450082718,0.00334,70750.0,70741.0,0.00334]
[1773450091021,0.00144,70749.0,70741.0,0.00334]
[1773450093423,0.042393,70755.0,70741.0,0.00334]
[1773450093627,0.16026584,70754.0,70741.0,0.00334]
[1773450093815,0.043833,70756.0,70741.0,0.00334]
[1773450094017,0.20409884,70756.0,70741.0,0.00334]
[1773450094723,0.20409884,70756.0,70740.0,0.00144]
[1773450095121,0.20409884,70756.0,70744.0,0.042399]
[1773450098025,0.20409884,70756.0,70743.0,0.00438]
[1773450098026,0.042394,70754.0,70743.0,0.00438]
[1773450098926,0.042394,70754.0,70743.0,0.04678]
[1773450098927,0.00144,70754.0,70743.0,0.04678]
[1773450099323,0.16026584,70755.0,70743.0,0.04678]
[1773450099529,0.042393,70756.0,70744.0,0.042399]
[1773450099734,0.00144,70755.0,70744.0,0.042399]
[1773450101121,0.042393,70756.0,70744.0,0.042399]
[1773450101421,0.00144,70755.0,70744.0,0.042399]
[1773450102228,0.042394,70754.0,70743.0,0.00438]
[1773450102826,0.042394,70754.0,70743.0,0.04678]
[1773450104330,0.00144,70755.0,70743.0,0.04678]
[1773450105228,0.00144,70755.0,70744.0,0.042399]
[1773450106128,0.56194249,70764.0,70745.0,0.07381105]
[1773450106331,0.00144,70763.0,70753.0,0.042394]
[1773450106531,0.00144,70762.0,70751.0,0.042395]
[1773450106730,0.042389,70763.0,70751.0,0.042395]
[1773450107223,0.042389,70762.0,70751.0,0.042395]
[1773450107624,0.042389,70762.0,70754.0,0.00436]
[1773450107825,0.15109467,70766.0,70754.0,0.00436]
[1773450108024,0.042388,70764.0,70754.0,0.00436]
[1773450108224,0.046748,70764.0,70754.0,0.00436]
[1773450108829,0.00144,70763.0,70754.0,0.00436]
[1773450109134,0.00436,70764.0,70754.0,0.00436]
[1773450109830,0.14353168,70761.0,70727.0,0.14601352]
[1773450110033,0.14353168,70759.0,70739.0,0.042402]
[1773450110234,0.14353168,70758.0,70739.0,0.042402]
[1773450110832,0.15992322,70764.0,70740.0,0.07381105]
[1773450110833,0.14789168,70764.0,70740.0,0.07381105]
[1773450111127,0.19764425,70754.0,70741.0,0.042401]
[1773450111332,0.15525025,70754.0,70740.0,0.042402]
[1773450111521,0.15525025,70754.0,70741.0,0.042401]
[1773450111522,0.042394,70753.0,70741.0,0.042401]
[1773450112232,0.043834,70753.0,70742.0,0.00436]
[1773450113433,0.043834,70753.0,70741.0,0.042401]
[1773450114038,0.043834,70753.0,70744.0,0.00436]
[1773450118446,0.042391,70759.0,70746.0,0.042398]
[1773450118840,0.042391,70759.0,70744.0,0.15195135]
[1773450118841,0.042391,70759.0,70747.0,0.042397]
[1773450119145,0.0014,70758.0,70747.0,0.042397]
[1773450119647,0.0014,70758.0,70749.0,0.00436]
[1773450120135,0.15525025,70735.0,70707.0,0.14759135]
[1773450120341,0.042408,70730.0,70710.0,0.07380937]
[1773450120536,0.042408,70730.0,70711.0,0.14759135]
[1773450121237,0.042408,70730.0,70716.0,0.042416]
[1773450122042,0.042409,70729.0,70716.0,0.042416]
[1773450122543,0.042409,70729.0,70718.0,0.00437]
[1773450122845,0.042409,70729.0,70719.0,0.0014]
[1773450125045,0.15525025,70744.0,70724.0,0.042411]
[1773450125247,0.15525025,70744.0,70725.0,0.00144]
[1773450125546,0.00146922,70743.0,70725.0,0.14903135]
[1773450125741,0.042397,70749.0,70736.0,0.042404]
[1773450125942,0.042397,70749.0,70736.0,0.043844]
[1773450126141,0.15525025,70758.0,70739.0,0.07380937]
[1773450126342,0.00144,70762.0,70745.0,0.042398]
[1773450126546,0.00144,70764.0,70747.0,0.14759135]
[1773450126742,0.04239,70760.0,70747.0,0.18998835]
[1773450126942,0.042391,70759.0,70747.0,0.18998835]
[1773450127143,0.00144,70771.0,70751.0,0.14759135]
[1773450127345,0.15525025,70769.0,70749.0,0.00144]
[1773450127544,0.042389,70762.0,70749.0,0.00144]
[1773450127750,0.00434,70760.0,70749.0,0.00144]
[1773450128546,0.042389,70762.0,70749.0,0.00144]
[1773450129047,0.042386,70767.0,70750.0,0.14759135]
[1773450129246,0.042386,70767.0,70752.0,0.00434]
[1773450129754,0.042386,70767.0,70754.0,0.042393]
[1773450129946,0.00434,70764.0,70752.0,0.046734]
[1773450130152,0.00434,70764.0,70753.0,0.042394]
[1773450130651,0.00434,70764.0,70754.0,0.042393]
[1773450131054,0.042386,70767.0,70754.0,0.042393]
[1773450131855,0.042386,70767.0,70757.0,0.00434]
[1773450132059,0.043785,70769.0,70757.0,0.00434]
[1773450132246,0.00434,70766.0,70757.0,0.00434]
[1773450132954,0.043785,70769.0,70755.0,0.042393]
[1773450133851,0.043785,70769.0,70760.0,0.00434]
[1773450135256,0.042386,70767.0,70760.0,0.00434]
[1773450136850,0.19763625,70767.0,70760.0,0.00434]
[1773450137051,0.042386,70767.0,70760.0,0.00434]
[1773450143459,0.042387,70766.0,70760.0,0.00434]
[1773450151363,0.00434,70771.0,70760.0,0.00434]
[1773450151961,0.042385,70768.0,70760.0,0.00434]
[1773450152167,0.042386,70767.0,70760.0,0.00434]
[1773450154072,0.042385,70769.0,70760.0,0.00434]
[1773450154571,0.042385,70769.0,70757.0,0.0014]
[1773450154572,0.21642916,70768.0,70757.0,0.0014]
[1773450154870,0.21642916,70767.0,70757.0,0.042392]
[1773450155169,0.21642916,70766.0,70757.0,0.042392]
[1773450155377,0.21642916,70765.0,70757.0,0.042392]
[1773450155569,0.21642916,70764.0,70757.0,0.042392]
[1773450155771,0.21642916,70763.0,70759.0,0.00431]
[1773450155966,0.21642916,70762.0,70759.0,0.00431]
[1773450156174,0.21642916,70761.0,70759.0,0.00431]
[1773450156369,0.46205274,70769.0,70759.0,0.00431]
[1773450156671,0.46636274,70769.0,70759.0,0.00431]
[1773450156871,0.046695,70769.0,70759.0,0.00431]
[1773450157169,0.042385,70769.0,70757.0,0.042392]
[1773450157570,0.042385,70769.0,70758.0,0.042391]
[1773450157769,0.042385,70769.0,70760.0,0.00438]
[1773450158172,0.46205274,70769.0,70760.0,0.00438]
[1773450158574,0.00438,70763.0,70760.0,0.00438]
[1773450164569,0.00438,70763.0,70756.0,0.0014]
[1773450164964,0.00438,70763.0,70758.0,0.042391]
[1773450165874,0.042385,70769.0,70758.0,0.042391]
[1773450166576,0.042385,70769.0,70760.0,0.00438]
[1773450167177,0.00438,70764.0,70760.0,0.00438]
[1773450167777,0.042385,70769.0,70758.0,0.042391]
[1773450168376,0.20288975,70768.0,70758.0,0.042391]
[1773450168577,0.20288975,70767.0,70762.0,0.00438]
[1773450168773,0.04238,70776.0,70762.0,0.00438]
[1773450169082,0.042379,70778.0,70763.0,0.0014]
[1773450169276,0.00438,70770.0,70763.0,0.0014]
[1773450169583,0.15237988,70777.0,70763.0,0.0014]
[1773450170082,0.19475988,70777.0,70765.0,0.042387]
[1773450170389,0.15237988,70777.0,70763.0,0.0014]
[1773450171176,0.15237988,70777.0,70765.0,0.00438]
[1773450172180,0.15237988,70777.0,70767.0,0.042385]
[1773450172778,0.15237988,70777.0,70768.0,0.042385]
[1773450173280,0.0007064,70781.0,70767.0,0.07377731]
[1773450173682,0.0007064,70781.0,70774.0,0.042381]
[1773450174372,0.0007064,70781.0,70770.0,0.00574]
[1773450174373,0.042375,70785.0,70770.0,0.00574]
[1773450174782,0.00434,70778.0,70770.0,0.00574]
[1773450175082,0.15169423,70786.0,70774.0,0.042381]
[1773450175384,0.042375,70785.0,70774.0,0.042381]
[1773450178490,0.042375,70785.0,70773.0,0.042382]
[1773450178491,0.1527684,70785.0,70773.0,0.042382]
[1773450178689,0.042376,70784.0,70777.0,0.00434]
[1773450178884,0.042376,70784.0,70772.0,0.042383]
[1773450179692,0.1527684,70769.0,70761.0,0.042389]
[1773450179988,0.1527684,70774.0,70761.0,0.0014]
[1773450180388,0.1527684,70774.0,70764.0,0.042387]
[1773450181592,0.1527684,70774.0,70767.0,0.00434]
[1773450182488,0.1527684,70774.0,70767.0,0.00363366]
[1773450186488,0.1527684,70769.0,70756.0,0.042392]
[1773450186695,0.1527684,70769.0,70756.0,0.0014]
[1773450186885,0.1527684,70769.0,70756.0,0.043792]
[1773450187289,0.1951534,70769.0,70756.0,0.043792]
[1773450187795,0.1951534,70769.0,70758.0,0.00432]
[1773450190799,0.1551184,70778.0,70759.0,0.22115306]
[1773450190800,0.042381,70776.0,70759.0,0.22115306]
[1773450191288,0.042381,70776.0,70760.0,0.14740423]
[1773450191801,0.042381,70776.0,70764.0,0.042387]
[1773450192002,0.042381,70776.0,70765.0,0.043787]
[1773450193601,0.042379,70778.0,70765.0,0.043787]
[1773450193796,0.04238,70777.0,70765.0,0.043787]
[1773450194197,0.04238,70777.0,70768.0,0.00432]
[1773450199210,0.00432,70778.0,70768.0,0.00432]
[1773450199506,0.046699,70778.0,70768.0,0.00432]
[1773450201105,0.15232364,70786.0,70768.0,0.07806883]
[1773450201309,0.042375,70785.0,70773.0,0.042382]
[1773450201696,0.042375,70785.0,70773.0,0.043782]
[1773450202706,0.19469864,70785.0,70776.0,0.00433]
[1773450203303,0.042376,70784.0,70776.0,0.00433]
[1773450205807,0.19469864,70785.0,70776.0,0.00433]
[1773450206007,0.042376,70784.0,70776.0,0.00433]
[1773450206504,0.15232364,70783.0,70776.0,0.00433]
[1773450207801,0.15232364,70783.0,70773.0,0.043782]
[1773450208801,0.15232364,70783.0,70776.0,0.00433]
[1773450209306,0.19469964,70783.0,70776.0,0.00433]
[1773450209507,0.15232364,70784.0,70773.0,0.0014]
[1773450209703,0.15232364,70776.0,70750.0,0.07374883]
[1773450210009,0.15232364,70776.0,70760.0,0.07374883]
[1773450210309,0.15232364,70776.0,70761.0,0.0014]
[1773450211009,0.042382,70774.0,70763.0,0.042388]
[1773450211604,0.19470464,70776.0,70764.0,0.042387]
[1773450212101,0.19470464,70776.0,70765.0,0.042387]
[1773450214103,0.042381,70776.0,70765.0,0.042387]
[1773450214608,0.042381,70776.0,70767.0,0.00433]
[1773450214809,0.042381,70776.0,70768.0,0.0014]
[1773450215415,0.042381,70776.0,70767.0,0.00433]
[1773450215610,0.042381,70776.0,70768.0,0.0014]
[1773450216316,0.032381,70776.0,70768.0,0.0014]
[1773450217916,0.00433,70777.0,70768.0,0.0014]
[1773450220015,0.036719,70778.0,70768.0,0.0014]
[1773450220919,0.036719,70778.0,70771.0,0.00434]
[1773450221120,0.3045889,70782.0,70771.0,0.00434]
[1773450221320,0.3045889,70782.0,70771.0,0.046723]
[1773450221519,0.00434,70779.0,70771.0,0.046723]
[1773450222420,0.13232364,70782.0,70771.0,0.042383]
[1773450222722,0.042376,70783.0,70771.0,0.042383]
[1773450223022,0.042376,70783.0,70774.0,0.00434]
[1773450224213,0.1628621,70784.0,70774.0,0.00434]
[1773450224413,0.1952481,70784.0,70774.0,0.00434]
[1773450224615,0.046716,70784.0,70774.0,0.00434]
[1773450224809,0.046716,70784.0,70775.0,0.0014]
[1773450225219,0.042378,70781.0,70772.0,0.0014]
[1773450225414,0.15232364,70780.0,70772.0,0.0014]
[1773450226921,0.15232364,70780.0,70774.0,0.00434]
[1773450227125,0.5890907,70778.0,70774.0,0.00434]
[1773450228827,0.44,70778.0,70774.0,0.00434]
[1773450230433,0.43,70778.0,70774.0,0.00434]
[1773450231330,0.42,70778.0,70774.0,0.00434]
[1773450232431,0.40001,70778.0,70774.0,0.00434]
[1773450233328,0.39001,70778.0,70774.0,0.00434]
[1773450233531,0.39001,70778.0,70774.0,0.046721]
[1773450234024,0.38001,70778.0,70774.0,0.00434]
[1773450235127,0.37001,70778.0,70775.0,0.042381]
[1773450236129,0.37001,70778.0,70774.0,0.046721]
[1773450236432,0.00294,70781.0,70775.0,0.042381]
[1773450236725,0.00294,70781.0,70774.0,0.00434]
[1773450236726,0.15355062,70786.0,70776.0,0.04238]
[1773450236930,0.042374,70787.0,70776.0,0.04238]
[1773450237532,0.18977553,70787.0,70778.0,0.00434]
[1773450237731,0.14740153,70793.0,70784.0,0.042375]
[1773450238026,0.12740153,70793.0,70783.0,0.042376]
[1773450238331,0.12740153,70793.0,70784.0,0.042375]
[1773450239033,0.042368,70798.0,70782.0,0.0014]
[1773450239233,0.13741153,70797.0,70782.0,0.0014]
[1773450239626,0.13741153,70797.0,70787.0,0.00434]
[1773450240232,0.00434,70795.0,70787.0,0.00434]
[1773450241033,0.13174153,70802.0,70787.0,0.00434]
[1773450241222,0.042366,70801.0,70784.0,0.042376]
[1773450241428,0.042366,70801.0,70782.0,0.0014]
[1773450241429,0.14740153,70800.0,70782.0,0.0014]
[1773450241843,0.14740153,70800.0,70789.0,0.042372]
[1773450242031,0.14740153,70800.0,70790.0,0.00434]
[1773450242232,0.14740153,70800.0,70791.0,0.0014]
[1773450242433,0.13740153,70800.0,70791.0,0.0014]
[1773450242737,0.00434,70797.0,70791.0,0.0014]
[1773450243440,0.13740153,70800.0,70791.0,0.0014]
[1773450244139,0.14740153,70798.0,70780.0,0.07371133]
[1773450244444,0.14740153,70798.0,70781.0,0.0014]
[1773450246043,0.14740153,70798.0,70788.0,0.042373]
[1773450246245,0.14740153,70798.0,70789.0,0.0014]
[1773450248645,0.14740153,70798.0,70792.0,0.00438]
[1773450250444,0.14740153,70809.0,70796.0,0.042368]
[1773450250745,0.0014,70808.0,70796.0,0.042368]
[1773450250944,0.14880153,70807.0,70796.0,0.042368]
[1773450251337,0.19116353,70807.0,70796.0,0.042368]
[1773450251532,0.18976353,70807.0,70796.0,0.042368]
[1773450251736,0.0014,70806.0,70796.0,0.042368]
[1773450251938,0.043763,70806.0,70794.0,0.042369]
[1773450252145,0.042363,70806.0,70795.0,0.042369]
[1773450252344,0.032363,70806.0,70795.0,0.042369]
[1773450252545,0.18976153,70811.0,70799.0,0.00438]
[1773450252740,0.14740153,70810.0,70798.0,0.042367]
[1773450253140,0.14740153,70809.0,70798.0,0.042367]
[1773450253346,0.15177153,70809.0,70798.0,0.042367]
[1773450256550,0.15177153,70809.0,70799.0,0.042366]
[1773450259652,0.00437,70809.0,70801.0,0.042365]
[1773450261053,0.042359,70812.0,70801.0,0.042365]
[1773450261456,0.042359,70812.0,70797.0,0.0014]
[1773450261457,0.1543398,70814.0,70797.0,0.0014]
[1773450261653,0.1543398,70814.0,70804.0,0.00438]
[1773450261853,0.1443498,70814.0,70804.0,0.00438]
[1773450262253,0.00437,70811.0,70804.0,0.00438]
[1773450262851,0.00437,70811.0,70805.0,0.042363]
[1773450263153,0.1867148,70819.0,70807.0,0.042362]
[1773450263554,0.1443598,70819.0,70805.0,0.0014]
[1773450263753,0.1443598,70819.0,70807.0,0.00437]
[1773450264458,0.00437,70816.0,70807.0,0.00437]
[1773450264952,0.00437,70816.0,70807.0,0.046732]
[1773450265852,0.00437,70816.0,70807.0,0.00437]
[1773450266152,0.1587098,70816.0,70805.0,0.0014]
[1773450266359,0.042358,70814.0,70804.0,0.0014]
[1773450266555,0.2010668,70816.0,70804.0,0.043763]
[1773450266858,0.1543398,70815.0,70804.0,0.043763]
[1773450267660,0.1543398,70815.0,70807.0,0.00437]
[1773450268757,0.00437,70818.0,70807.0,0.00437]
[1773450269362,0.1587098,70818.0,70807.0,0.00437]
[1773450270057,0.1587098,70818.0,70807.0,0.046732]
[1773450270757,0.1543398,70817.0,70807.0,0.00437]
[1773450274768,0.1543398,70817.0,70807.0,0.046731]
[1773450275067,0.00437,70818.0,70807.0,0.046731]
[1773450275566,0.00437,70818.0,70808.0,0.042361]
[1773450276065,0.00437,70818.0,70804.0,0.0014]
[1773450276066,0.1966958,70818.0,70804.0,0.0014]
[1773450276263,0.1543398,70817.0,70804.0,0.0014]
[1773450276767,0.1543398,70803.0,70790.0,0.0014]
[1773450277067,0.1543398,70802.0,70792.0,0.042371]
[1773450277265,0.1543398,70802.0,70792.0,0.043771]
[1773450277466,0.1543398,70802.0,70792.0,0.042371]
[1773450277759,0.1543398,70802.0,70793.0,0.0014]
[1773450278165,0.042366,70800.0,70788.0,0.042373]
[1773450278364,0.1543398,70799.0,70788.0,0.02137366]
[1773450278755,0.1543398,70799.0,70794.0,0.00438]
[1773450278956,0.042366,70800.0,70794.0,0.00438]
[1773450279562,0.1967058,70800.0,70794.0,0.00438]
[1773450281067,0.1543398,70799.0,70794.0,0.00438]
[1773450281258,0.1543398,70799.0,70787.0,0.042374]
[1773450282170,0.1543398,70799.0,70788.0,0.042373]
[1773450282673,0.1543398,70799.0,70789.0,0.00438]
[1773450287466,0.046746,70800.0,70789.0,0.00438]
[1773450290570,0.28225301,70799.0,70766.0,0.16916062]
[1773450290771,0.18551832,70792.0,70779.0,0.042378]
[1773450291072,0.14314732,70791.0,70779.0,0.042378]
[1773450291371,0.14314732,70791.0,70780.0,0.042378]
[1773450291569,0.14314732,70791.0,70781.0,0.0014]
[1773450293168,0.14314732,70791.0,70780.0,0.046758]
[1773450293372,0.14314732,70791.0,70781.0,0.0014]
[1773450293669,0.00438,70792.0,70781.0,0.0014]
[1773450294475,0.042365,70803.0,70782.0,0.14590981]
[1773450294664,0.042365,70802.0,70788.0,0.042373]
[1773450294865,0.042365,70802.0,70789.0,0.0014]
[1773450295375,0.042368,70798.0,70789.0,0.0014]
[1773450295771,0.042368,70798.0,70786.0,0.042374]
[1773450295973,0.042368,70798.0,70787.0,0.0014]
[1773450296372,0.042366,70800.0,70787.0,0.0014]
[1773450296567,0.042366,70800.0,70791.0,0.00438]
[1773450297173,0.00438,70799.0,70791.0,0.00438]
[1773450303077,0.046747,70799.0,70791.0,0.00438]
[1773450303879,0.046747,70799.0,70791.0,0.00578]
[1773450307682,0.00438,70799.0,70791.0,0.00578]
[1773450308175,0.042367,70798.0,70791.0,0.00578]
[1773450309975,0.00438,70799.0,70791.0,0.00578]
[1773450310372,0.45497955,70812.0,70794.0,0.042369]
[1773450310373,0.41966774,70812.0,70794.0,0.042369]
[1773450310578,0.042364,70804.0,70792.0,0.04237]
[1773450311574,0.042364,70804.0,70794.0,0.00438]
[1773450311880,0.042364,70803.0,70794.0,0.00438]
[1773450313574,0.046733,70805.0,70794.0,0.00438]
[1773450314986,0.042364,70804.0,70794.0,0.00438]
[1773450315374,0.00437,70805.0,70791.0,0.0014]
[1773450315686,0.14321667,70804.0,70791.0,0.0014]
[1773450315882,0.042367,70799.0,70791.0,0.0014]
[1773450317689,0.042367,70799.0,70793.0,0.00438]
[1773450320588,0.04237,70794.0,70780.0,0.07370553]
[1773450320785,0.042369,70796.0,70781.0,0.0014]
[1773450321684,0.14321667,70799.0,70783.0,0.042376]